[Event "January 2 Late 2024"]
[Site "https://www.chess.com"]
[Date "2024.01.02"]
[Round "9"]
[White "Bazzano, Sebastian"]
[Black "Carrillo Marval, Maria Angelica"]
[Result "1-0"]
[Board "139"]
[TimeControl "180+1"]
[WhiteFideId "104566"]
[BlackFideId "3911853"]
[WhiteElo "2285"]
[BlackElo "2098"]
[WhiteTeam "ARG"]
[BlackTeam "PAN"]
[WhiteClock "0:00:21"]
[BlackClock "0:00:08"]

1. d4 {[%clk 0:01:28]}  Nf6 {[%clk 0:02:57]} 2. Bf4 {[%clk 0:01:27]}  g6 {[%clk 0:02:44]} 3. Nc3 {[%clk 0:01:27]}  Bg7 {[%clk 0:02:43]} 4. e4 {[%clk 0:01:27]}  d6 {[%clk 0:02:43]} 5. Qd2 {[%clk 0:01:27]}  O-O {[%clk 0:02:43]} 6. O-O-O {[%clk 0:01:28]}  Nbd7 {[%clk 0:02:26]} 7. Nf3 {[%clk 0:01:27]}  c5 {[%clk 0:02:26]} 8. dxc5 {[%clk 0:01:25]}  Nxc5 {[%clk 0:02:26]} 9. e5 {[%clk 0:01:26]}  Nfe4 {[%clk 0:02:09]} 10. Nxe4 {[%clk 0:01:25]}  Nxe4 {[%clk 0:02:09]} 11. Qe3 {[%clk 0:01:26]}  Bf5 {[%clk 0:02:06]} 12. g4 {[%clk 0:01:24]}  Nxf2 {[%clk 0:01:52]} 13. Qxf2 {[%clk 0:01:22]}  Bxg4 {[%clk 0:01:52]} 14. Kb1 {[%clk 0:00:56]}  Qa5 {[%clk 0:01:42]} 15. h3 {[%clk 0:00:48]}  Be6 {[%clk 0:01:41]} 16. a3 {[%clk 0:00:44]}  dxe5 {[%clk 0:01:36]} 17. Bc1 {[%clk 0:00:43]}  Rad8 {[%clk 0:01:16]} 18. Bg2 {[%clk 0:00:38]}  h6 {[%clk 0:00:50]} 19. Rhe1 {[%clk 0:00:32]}  a6 {[%clk 0:00:40]} 20. Qh4 {[%clk 0:00:32]}  Rxd1 {[%clk 0:00:30]} 21. Rxd1 {[%clk 0:00:33]}  h5 {[%clk 0:00:17]} 22. Qxe7 {[%clk 0:00:32]}  e4 {[%clk 0:00:14]} 23. Ng5 {[%clk 0:00:29]}  Bf5 {[%clk 0:00:14]} 24. Nxe4 {[%clk 0:00:28]}  Qe5 {[%clk 0:00:09]} 25. Qxe5 {[%clk 0:00:24]}  Bxe5 {[%clk 0:00:10]} 26. Nc5 {[%clk 0:00:24]}  b6 {[%clk 0:00:09]} 27. Nxa6 {[%clk 0:00:24]}  Ra8 {[%clk 0:00:08]} 28. Bxa8 {[%clk 0:00:21]}  Kg7 {[%clk 0:00:08]} 1-0

[Event "January 2 Late 2024"]
[Site "https://www.chess.com"]
[Date "2024.01.02"]
[Round "9"]
[White "Kotlyar, Kirill"]
[Black "Burke, Paul"]
[Result "1-0"]
[Board "141"]
[TimeControl "180+1"]
[WhiteFideId "24145599"]
[BlackFideId "2605767"]
[WhiteElo "2505"]
[BlackElo "1944"]
[WhiteTeam "RUS"]
[BlackTeam "CAN"]
[WhiteClock "0:00:11"]
[BlackClock "0:00:00"]

1. e4 {[%clk 0:02:59]}  e5 {[%clk 0:02:59]} 2. Nf3 {[%clk 0:02:59]}  Nc6 {[%clk 0:02:59]} 3. Bb5 {[%clk 0:03:00]}  f5 {[%clk 0:02:59]} 4. d3 {[%clk 0:02:55]}  Nf6 {[%clk 0:02:58]} 5. Nc3 {[%clk 0:02:55]}  Be7 {[%clk 0:02:58]} 6. O-O {[%clk 0:02:50]}  O-O {[%clk 0:02:58]} 7. exf5 {[%clk 0:02:38]}  d6 {[%clk 0:02:57]} 8. d4 {[%clk 0:02:37]}  e4 {[%clk 0:02:57]} 9. Ng5 {[%clk 0:02:31]}  Bxf5 {[%clk 0:02:54]} 10. Re1 {[%clk 0:02:26]}  d5 {[%clk 0:02:48]} 11. f3 {[%clk 0:02:15]}  exf3 {[%clk 0:02:35]} 12. Nxf3 {[%clk 0:02:16]}  Bg4 {[%clk 0:02:35]} 13. Bxc6 {[%clk 0:02:08]}  bxc6 {[%clk 0:02:35]} 14. Qd3 {[%clk 0:02:08]}  Bxf3 {[%clk 0:01:58]} 15. Qxf3 {[%clk 0:02:05]}  Ne4 {[%clk 0:01:58]} 16. Qe3 {[%clk 0:01:52]}  Bg5 {[%clk 0:01:46]} 17. Qh3 {[%clk 0:01:40]}  Bxc1 {[%clk 0:01:27]} 18. Raxc1 {[%clk 0:01:38]}  Qf6 {[%clk 0:01:22]} 19. Nxe4 {[%clk 0:01:24]}  dxe4 {[%clk 0:01:19]} 20. Qe3 {[%clk 0:01:15]}  Rae8 {[%clk 0:01:12]} 21. Rf1 {[%clk 0:01:05]}  Qe7 {[%clk 0:01:12]} 22. Rxf8+ {[%clk 0:01:01]}  Qxf8 {[%clk 0:01:12]} 23. Re1 {[%clk 0:01:02]}  Qb4 {[%clk 0:00:59]} 24. b3 {[%clk 0:00:57]}  Qe7 {[%clk 0:00:51]} 25. c4 {[%clk 0:00:50]}  h6 {[%clk 0:00:51]} 26. h3 {[%clk 0:00:47]}  Qa3 {[%clk 0:00:47]} 27. Re2 {[%clk 0:00:46]}  Qd6 {[%clk 0:00:37]} 28. Qf2 {[%clk 0:00:32]}  Qa3 {[%clk 0:00:29]} 29. Qf4 {[%clk 0:00:29]}  Qe7 {[%clk 0:00:26]} 30. Qf5 {[%clk 0:00:26]}  e3 {[%clk 0:00:17]} 31. Qf3 {[%clk 0:00:22]}  Qe6 {[%clk 0:00:17]} 32. d5 {[%clk 0:00:21]}  Qe5 {[%clk 0:00:16]} 33. dxc6 {[%clk 0:00:20]}  Qa1+ {[%clk 0:00:15]} 34. Kh2 {[%clk 0:00:20]}  Qe5+ {[%clk 0:00:15]} 35. g3 {[%clk 0:00:21]}  Qe6 {[%clk 0:00:13]} 36. Qd5 {[%clk 0:00:20]}  Qxd5 {[%clk 0:00:11]} 37. cxd5 {[%clk 0:00:21]}  Kf7 {[%clk 0:00:11]} 38. Kg2 {[%clk 0:00:21]}  Rd8 {[%clk 0:00:10]} 39. Rxe3 {[%clk 0:00:20]}  Rxd5 {[%clk 0:00:09]} 40. Re4 {[%clk 0:00:09]}  Rc5 {[%clk 0:00:09]} 41. Rc4 {[%clk 0:00:07]}  Rd5 {[%clk 0:00:08]} 42. Kf3 {[%clk 0:00:07]}  Rd2 {[%clk 0:00:08]} 43. a4 {[%clk 0:00:07]}  Rd3+ {[%clk 0:00:07]} 44. Kf4 {[%clk 0:00:06]}  Rxb3 {[%clk 0:00:07]} 45. h4 {[%clk 0:00:06]}  Rb6 {[%clk 0:00:07]} 46. g4 {[%clk 0:00:06]}  Ra6 {[%clk 0:00:07]} 47. h5 {[%clk 0:00:07]}  Ra5 {[%clk 0:00:06]} 48. Kf3 {[%clk 0:00:07]}  Rd5 {[%clk 0:00:06]} 49. Kf4 {[%clk 0:00:08]}  Rd6 {[%clk 0:00:06]} 50. Ke5 {[%clk 0:00:08]}  Re6+ {[%clk 0:00:06]} 51. Kd5 {[%clk 0:00:08]}  Rd6+ {[%clk 0:00:06]} 52. Kc5 {[%clk 0:00:09]}  Rd1 {[%clk 0:00:06]} 53. Kb5 {[%clk 0:00:09]}  Rb1+ {[%clk 0:00:06]} 54. Ka6 {[%clk 0:00:10]}  Rb6+ {[%clk 0:00:06]} 55. Kxa7 {[%clk 0:00:10]}  Kf6 {[%clk 0:00:05]} 56. a5 {[%clk 0:00:10]}  Rb5 {[%clk 0:00:05]} 57. a6 {[%clk 0:00:11]}  Kg5 {[%clk 0:00:04]} 58. Ka8 {[%clk 0:00:11]}  Kf6 {[%clk 0:00:03]} 59. a7 {[%clk 0:00:11]}  Kg5 {[%clk 0:00:02]} 60. Rd4 {[%clk 0:00:11]}  Kf6 {[%clk 0:00:00]} 61. Rd8 {[%clk 0:00:11]} 1-0

[Event "January 2 Late 2024"]
[Site "https://www.chess.com"]
[Date "2024.01.02"]
[Round "9"]
[White "Sreyas Payyappat"]
[Black "Jose Iraeta, Alejandro"]
[Result "0-1"]
[Board "142"]
[TimeControl "180+1"]
[WhiteFideId "46674969"]
[BlackFideId "2226537"]
[WhiteElo "2434"]
[BlackElo "2204"]
[WhiteTeam "IND"]
[BlackTeam "ESP"]
[WhiteClock "0:00:09"]
[BlackClock "0:00:30"]

1. e4 {[%clk 0:03:00]}  e5 {[%clk 0:02:57]} 2. Nf3 {[%clk 0:03:00]}  d5 {[%clk 0:02:58]} 3. Nxe5 {[%clk 0:02:59]}  Bd6 {[%clk 0:02:57]} 4. d4 {[%clk 0:02:57]}  dxe4 {[%clk 0:02:57]} 5. Nxf7 {[%clk 0:02:38]}  Kxf7 {[%clk 0:02:20]} 6. Qh5+ {[%clk 0:02:37]}  g6 {[%clk 0:02:19]} 7. Qd5+ {[%clk 0:01:59]}  Kf8 {[%clk 0:02:18]} 8. Bc4 {[%clk 0:01:58]}  Qe7 {[%clk 0:02:16]} 9. Bg5 {[%clk 0:01:54]}  Qd7 {[%clk 0:02:10]} 10. O-O {[%clk 0:01:48]}  h6 {[%clk 0:01:56]} 11. Bh4 {[%clk 0:01:45]}  g5 {[%clk 0:01:53]} 12. f3 {[%clk 0:01:38]}  Bxh2+ {[%clk 0:01:48]} 13. Kxh2 {[%clk 0:01:37]}  Qxd5 {[%clk 0:01:49]} 14. fxe4+ {[%clk 0:01:29]}  Qf5 {[%clk 0:01:29]} 15. exf5 {[%clk 0:01:23]}  gxh4 {[%clk 0:01:30]} 16. Nc3 {[%clk 0:01:24]}  Nf6 {[%clk 0:01:29]} 17. Rae1 {[%clk 0:01:18]}  c6 {[%clk 0:01:07]} 18. Be6 {[%clk 0:01:07]}  Bxe6 {[%clk 0:01:06]} 19. fxe6 {[%clk 0:00:58]}  Ke7 {[%clk 0:01:05]} 20. d5 {[%clk 0:00:56]}  cxd5 {[%clk 0:01:06]} 21. Rxf6 {[%clk 0:00:20]}  Kxf6 {[%clk 0:01:04]} 22. Nxd5+ {[%clk 0:00:20]}  Kg7 {[%clk 0:01:02]} 23. Rf1 {[%clk 0:00:14]}  Nc6 {[%clk 0:00:56]} 24. Rf7+ {[%clk 0:00:14]}  Kg6 {[%clk 0:00:57]} 25. Rxb7 {[%clk 0:00:12]}  Rae8 {[%clk 0:00:53]} 26. Rc7 {[%clk 0:00:12]}  Nd4 {[%clk 0:00:48]} 27. e7 {[%clk 0:00:11]}  Nf5 {[%clk 0:00:41]} 28. c4 {[%clk 0:00:10]}  Rh7 {[%clk 0:00:37]} 29. Rc6+ {[%clk 0:00:08]}  Kg5 {[%clk 0:00:36]} 30. Nf6 {[%clk 0:00:05]}  Rexe7 {[%clk 0:00:34]} 31. Nxh7+ {[%clk 0:00:06]}  Rxh7 {[%clk 0:00:34]} 32. c5 {[%clk 0:00:06]}  Rb7 {[%clk 0:00:34]} 33. b3 {[%clk 0:00:06]}  Re7 {[%clk 0:00:33]} 34. Rc8 {[%clk 0:00:06]}  Ng3 {[%clk 0:00:32]} 35. b4 {[%clk 0:00:06]}  Re1 {[%clk 0:00:32]} 36. Rg8+ {[%clk 0:00:06]}  Kh5 {[%clk 0:00:32]} 37. Rxg3 {[%clk 0:00:05]}  hxg3+ {[%clk 0:00:33]} 38. Kxg3 {[%clk 0:00:06]}  Re2 {[%clk 0:00:34]} 39. c6 {[%clk 0:00:05]}  Rxa2 {[%clk 0:00:34]} 40. Kf4 {[%clk 0:00:05]}  Rxg2 {[%clk 0:00:34]} 41. Ke5 {[%clk 0:00:06]}  Rc2 {[%clk 0:00:34]} 42. Kd6 {[%clk 0:00:06]}  Kg4 {[%clk 0:00:34]} 43. Kd7 {[%clk 0:00:04]}  h5 {[%clk 0:00:34]} 44. c7 {[%clk 0:00:04]}  h4 {[%clk 0:00:34]} 45. c8=Q {[%clk 0:00:05]}  Rxc8 {[%clk 0:00:33]} 46. Kxc8 {[%clk 0:00:06]}  h3 {[%clk 0:00:34]} 47. Kb7 {[%clk 0:00:07]}  h2 {[%clk 0:00:35]} 48. Kxa7 {[%clk 0:00:07]}  h1=Q {[%clk 0:00:35]} 49. b5 {[%clk 0:00:08]}  Qa1+ {[%clk 0:00:34]} 50. Kb7 {[%clk 0:00:08]}  Qa5 {[%clk 0:00:33]} 51. b6 {[%clk 0:00:09]}  Kf5 {[%clk 0:00:33]} 52. Kc7 {[%clk 0:00:09]}  Qc5+ {[%clk 0:00:33]} 53. Kb7 {[%clk 0:00:10]}  Ke6 {[%clk 0:00:33]} 54. Ka8 {[%clk 0:00:10]}  Qa5+ {[%clk 0:00:30]} 55. Kb8 {[%clk 0:00:10]}  Qxb6+ {[%clk 0:00:30]} 56. Ka8 {[%clk 0:00:09]}  Qb5 {[%clk 0:00:30]} 0-1

[Event "January 2 Late 2024"]
[Site "https://www.chess.com"]
[Date "2024.01.02"]
[Round "9"]
[White "Kubatko, Ivan"]
[Black "th3d4rkness"]
[Result "0-1"]
[Board "145"]
[TimeControl "180+1"]
[WhiteFideId "24111473"]
[WhiteElo "2328"]
[BlackElo "2154"]
[WhiteTeam "RUS"]
[WhiteClock "0:00:00"]
[BlackClock "0:00:09"]

1. e4 {[%clk 0:02:57]}  c5 {[%clk 0:02:59]} 2. c3 {[%clk 0:02:53]}  d5 {[%clk 0:02:58]} 3. exd5 {[%clk 0:02:53]}  Qxd5 {[%clk 0:02:58]} 4. d4 {[%clk 0:02:54]}  Nc6 {[%clk 0:02:58]} 5. Nf3 {[%clk 0:02:53]}  Bg4 {[%clk 0:02:56]} 6. Be2 {[%clk 0:02:53]}  e6 {[%clk 0:02:55]} 7. h3 {[%clk 0:02:53]}  Bh5 {[%clk 0:02:55]} 8. O-O {[%clk 0:02:53]}  cxd4 {[%clk 0:02:53]} 9. cxd4 {[%clk 0:02:54]}  Nf6 {[%clk 0:02:53]} 10. Nc3 {[%clk 0:02:54]}  Qd6 {[%clk 0:02:54]} 11. Qb3 {[%clk 0:02:47]}  Qb4 {[%clk 0:02:32]} 12. g4 {[%clk 0:02:25]}  Bg6 {[%clk 0:02:30]} 13. Bb5 {[%clk 0:02:22]}  Qxb3 {[%clk 0:02:24]} 14. axb3 {[%clk 0:02:21]}  Bd6 {[%clk 0:02:14]} 15. Ne5 {[%clk 0:02:05]}  Bxe5 {[%clk 0:02:06]} 16. dxe5 {[%clk 0:02:04]}  Nd7 {[%clk 0:02:05]} 17. f4 {[%clk 0:02:03]}  Bc2 {[%clk 0:01:55]} 18. Be3 {[%clk 0:01:15]}  a6 {[%clk 0:01:54]} 19. Be2 {[%clk 0:01:00]}  Bxb3 {[%clk 0:01:47]} 20. Ne4 {[%clk 0:01:00]}  O-O {[%clk 0:01:37]} 21. Nd6 {[%clk 0:01:00]}  b5 {[%clk 0:01:22]} 22. Rfc1 {[%clk 0:00:56]}  Bd5 {[%clk 0:01:21]} 23. Ra3 {[%clk 0:00:37]}  f6 {[%clk 0:01:20]} 24. exf6 {[%clk 0:00:37]}  Nxf6 {[%clk 0:01:06]} 25. Rca1 {[%clk 0:00:30]}  Rfd8 {[%clk 0:00:56]} 26. Nxb5 {[%clk 0:00:29]}  Nb4 {[%clk 0:00:44]} 27. Nd4 {[%clk 0:00:19]}  Ne4 {[%clk 0:00:31]} 28. Ra4 {[%clk 0:00:15]}  Rab8 {[%clk 0:00:27]} 29. Bxa6 {[%clk 0:00:11]}  Nxa6 {[%clk 0:00:26]} 30. Rxa6 {[%clk 0:00:12]}  Rxb2 {[%clk 0:00:26]} 31. Nxe6 {[%clk 0:00:11]}  Ng3 {[%clk 0:00:19]} 32. Bf2 {[%clk 0:00:04]}  Ne2+ {[%clk 0:00:18]} 33. Kf1 {[%clk 0:00:03]}  Rc8 {[%clk 0:00:17]} 34. Nd4 {[%clk 0:00:03]}  Nxd4 {[%clk 0:00:15]} 35. Bxd4 {[%clk 0:00:04]}  Bg2+ {[%clk 0:00:14]} 36. Ke1 {[%clk 0:00:03]}  Rb4 {[%clk 0:00:10]} 37. Ra8 {[%clk 0:00:03]}  Bxa8 {[%clk 0:00:09]} 38. Be3 {[%clk 0:00:01]}  Be4 {[%clk 0:00:09]} 39. Bd2 {[%clk 0:00:01]}  Rbc4 {[%clk 0:00:09]} 40. Ra7 {[%clk 0:00:01]}  Bd5 {[%clk 0:00:09]} 41. f5 {[%clk 0:00:00]}  h6 {[%clk 0:00:09]} 0-1

[Event "January 2 Late 2024"]
[Site "https://www.chess.com"]
[Date "2024.01.02"]
[Round "9"]
[White "Smirnov, Timofey"]
[Black "Rose, Felix"]
[Result "0-1"]
[Board "148"]
[TimeControl "180+1"]
[WhiteFideId "24176427"]
[BlackFideId "5105722"]
[WhiteElo "1999"]
[BlackElo "2227"]
[WhiteTeam "RUS"]
[BlackTeam "MEX"]
[WhiteClock "0:00:00"]
[BlackClock "0:00:43"]

1. d4 {[%clk 0:03:00]}  Nf6 {[%clk 0:02:54]} 2. Bf4 {[%clk 0:03:00]}  d5 {[%clk 0:02:54]} 3. e3 {[%clk 0:03:00]}  e6 {[%clk 0:02:54]} 4. Nd2 {[%clk 0:02:59]}  Bd6 {[%clk 0:02:55]} 5. Bg3 {[%clk 0:02:59]}  O-O {[%clk 0:02:55]} 6. Ngf3 {[%clk 0:02:56]}  c5 {[%clk 0:02:55]} 7. c3 {[%clk 0:02:56]}  b6 {[%clk 0:02:56]} 8. Ne5 {[%clk 0:02:55]}  Bb7 {[%clk 0:02:54]} 9. Ndf3 {[%clk 0:02:54]}  Nc6 {[%clk 0:02:52]} 10. Bb5 {[%clk 0:02:47]}  Ne7 {[%clk 0:02:46]} 11. Nd7 {[%clk 0:02:26]}  Nxd7 {[%clk 0:02:21]} 12. Bxd6 {[%clk 0:02:26]}  cxd4 {[%clk 0:02:10]} 13. exd4 {[%clk 0:02:22]}  Nf6 {[%clk 0:02:09]} 14. Be5 {[%clk 0:02:13]}  Ng6 {[%clk 0:02:07]} 15. Bg3 {[%clk 0:02:11]}  Ne4 {[%clk 0:02:03]} 16. O-O {[%clk 0:02:08]}  Nxg3 {[%clk 0:01:57]} 17. hxg3 {[%clk 0:02:08]}  Qc7 {[%clk 0:01:53]} 18. Re1 {[%clk 0:02:04]}  a6 {[%clk 0:01:49]} 19. Bd3 {[%clk 0:02:03]}  b5 {[%clk 0:01:49]} 20. a3 {[%clk 0:02:02]}  Bc6 {[%clk 0:01:48]} 21. Bxg6 {[%clk 0:01:53]}  hxg6 {[%clk 0:01:47]} 22. Ne5 {[%clk 0:01:53]}  a5 {[%clk 0:01:44]} 23. Qg4 {[%clk 0:01:33]}  Rfb8 {[%clk 0:01:37]} 24. Re3 {[%clk 0:01:09]}  Be8 {[%clk 0:01:36]} 25. Rae1 {[%clk 0:00:58]}  b4 {[%clk 0:01:35]} 26. Nxg6 {[%clk 0:00:46]}  fxg6 {[%clk 0:01:33]} 27. Qxe6+ {[%clk 0:00:46]}  Bf7 {[%clk 0:01:30]} 28. Qg4 {[%clk 0:00:39]}  bxa3 {[%clk 0:01:25]} 29. bxa3 {[%clk 0:00:38]}  Qc8 {[%clk 0:01:21]} 30. Qf4 {[%clk 0:00:28]}  Qf5 {[%clk 0:01:19]} 31. Qd6 {[%clk 0:00:25]}  Qf6 {[%clk 0:01:09]} 32. Qd7 {[%clk 0:00:20]}  Rd8 {[%clk 0:01:05]} 33. Qg4 {[%clk 0:00:19]}  Qf5 {[%clk 0:01:04]} 34. Qd1 {[%clk 0:00:17]}  g5 {[%clk 0:01:00]} 35. Rf3 {[%clk 0:00:16]}  Qd7 {[%clk 0:00:58]} 36. Rfe3 {[%clk 0:00:11]}  Re8 {[%clk 0:00:56]} 37. Qc1 {[%clk 0:00:04]}  Rxe3 {[%clk 0:00:53]} 38. Rxe3 {[%clk 0:00:05]}  Qd6 {[%clk 0:00:50]} 39. Rf3 {[%clk 0:00:04]}  g4 {[%clk 0:00:47]} 40. Rf4 {[%clk 0:00:03]}  Be6 {[%clk 0:00:45]} 41. Qe3 {[%clk 0:00:02]}  Rf8 {[%clk 0:00:43]} 42. Rxf8+ {[%clk 0:00:00]}  Kxf8 {[%clk 0:00:43]} 0-1

[Event "January 2 Late 2024"]
[Site "https://www.chess.com"]
[Date "2024.01.02"]
[Round "9"]
[White "Piscicelli, Daniel Orlando"]
[Black "Reinecke, Katharina"]
[Result "0-1"]
[Board "151"]
[TimeControl "180+1"]
[WhiteFideId "101958"]
[BlackFideId "12929727"]
[WhiteElo "2365"]
[BlackElo "2019"]
[WhiteTeam "ARG"]
[BlackTeam "GER"]
[WhiteClock "0:00:08"]
[BlackClock "0:01:24"]

1. e4 {[%clk 0:03:00]}  c6 {[%clk 0:02:59]} 2. d4 {[%clk 0:02:57]}  d5 {[%clk 0:02:59]} 3. exd5 {[%clk 0:02:57]}  cxd5 {[%clk 0:02:59]} 4. Bd3 {[%clk 0:02:57]}  Nc6 {[%clk 0:02:57]} 5. Nf3 {[%clk 0:02:57]}  Nf6 {[%clk 0:02:51]} 6. O-O {[%clk 0:02:54]}  Bg4 {[%clk 0:02:49]} 7. c3 {[%clk 0:02:48]}  Qc7 {[%clk 0:02:46]} 8. Bg5 {[%clk 0:02:45]}  e6 {[%clk 0:02:40]} 9. Nbd2 {[%clk 0:02:44]}  Be7 {[%clk 0:02:39]} 10. Qc2 {[%clk 0:02:42]}  h6 {[%clk 0:02:34]} 11. Bxf6 {[%clk 0:02:31]}  Bxf6 {[%clk 0:02:32]} 12. h3 {[%clk 0:02:25]}  Bxf3 {[%clk 0:02:27]} 13. Nxf3 {[%clk 0:02:23]}  O-O {[%clk 0:02:23]} 14. Rfe1 {[%clk 0:02:18]}  Rac8 {[%clk 0:02:22]} 15. Rac1 {[%clk 0:02:11]}  a6 {[%clk 0:02:18]} 16. a3 {[%clk 0:02:07]}  b5 {[%clk 0:02:17]} 17. Qd2 {[%clk 0:02:02]}  Na5 {[%clk 0:02:14]} 18. Qd1 {[%clk 0:01:24]}  Nc4 {[%clk 0:02:11]} 19. Bxc4 {[%clk 0:01:23]}  bxc4 {[%clk 0:02:10]} 20. Qa4 {[%clk 0:01:11]}  Qb6 {[%clk 0:02:03]} 21. Qb4 {[%clk 0:00:54]}  Rb8 {[%clk 0:02:01]} 22. Ra1 {[%clk 0:00:51]}  a5 {[%clk 0:02:00]} 23. Qxb6 {[%clk 0:00:48]}  Rxb6 {[%clk 0:01:59]} 24. Re2 {[%clk 0:00:48]}  Rfb8 {[%clk 0:01:59]} 25. Rb1 {[%clk 0:00:42]}  a4 {[%clk 0:01:58]} 26. Ne1 {[%clk 0:00:37]}  Be7 {[%clk 0:01:57]} 27. Nc2 {[%clk 0:00:37]}  Rb3 {[%clk 0:01:46]} 28. Nb4 {[%clk 0:00:31]}  Bxb4 {[%clk 0:01:45]} 29. axb4 {[%clk 0:00:29]}  a3 {[%clk 0:01:44]} 30. Rc2 {[%clk 0:00:18]}  a2 {[%clk 0:01:43]} 31. Ra1 {[%clk 0:00:17]}  Ra8 {[%clk 0:01:43]} 32. Kf1 {[%clk 0:00:16]}  f6 {[%clk 0:01:41]} 33. Ke2 {[%clk 0:00:16]}  Kf7 {[%clk 0:01:41]} 34. Ke3 {[%clk 0:00:15]}  e5 {[%clk 0:01:41]} 35. f3 {[%clk 0:00:13]}  Ke6 {[%clk 0:01:32]} 36. g4 {[%clk 0:00:11]}  Kd6 {[%clk 0:01:31]} 37. f4 {[%clk 0:00:11]}  exd4+ {[%clk 0:01:25]} 38. Kxd4 {[%clk 0:00:10]}  Re8 {[%clk 0:01:25]} 39. Rxa2 {[%clk 0:00:08]}  Re4# {[%clk 0:01:24]} 0-1

[Event "January 2 Late 2024"]
[Site "https://www.chess.com"]
[Date "2024.01.02"]
[Round "9"]
[White "Anna20240"]
[Black "Sarquis, Maria Belen"]
[Result "0-1"]
[Board "152"]
[TimeControl "180+1"]
[BlackFideId "111805"]
[WhiteElo "1871"]
[BlackElo "2221"]
[BlackTeam "ARG"]
[WhiteClock "0:00:00"]
[BlackClock "0:00:14"]

1. d4 {[%clk 0:02:59]}  Nf6 {[%clk 0:02:47]} 2. c4 {[%clk 0:02:58]}  e6 {[%clk 0:02:46]} 3. Nf3 {[%clk 0:02:57]}  d5 {[%clk 0:02:41]} 4. g3 {[%clk 0:02:56]}  Be7 {[%clk 0:02:41]} 5. Bg2 {[%clk 0:02:55]}  O-O {[%clk 0:02:41]} 6. Nbd2 {[%clk 0:02:53]}  dxc4 {[%clk 0:02:25]} 7. Nxc4 {[%clk 0:02:53]}  c5 {[%clk 0:02:17]} 8. O-O {[%clk 0:02:51]}  Nc6 {[%clk 0:02:17]} 9. Be3 {[%clk 0:02:44]}  Nd5 {[%clk 0:02:10]} 10. dxc5 {[%clk 0:02:29]}  Nxe3 {[%clk 0:02:09]} 11. Nxe3 {[%clk 0:02:28]}  Bxc5 {[%clk 0:02:09]} 12. Nc4 {[%clk 0:02:18]}  Qe7 {[%clk 0:02:03]} 13. a3 {[%clk 0:02:16]}  a6 {[%clk 0:01:56]} 14. b4 {[%clk 0:02:15]}  Ba7 {[%clk 0:01:56]} 15. Qc2 {[%clk 0:02:12]}  Bd7 {[%clk 0:01:51]} 16. Rfd1 {[%clk 0:02:09]}  Rac8 {[%clk 0:01:43]} 17. Qd3 {[%clk 0:02:05]}  Rc7 {[%clk 0:01:39]} 18. Nce5 {[%clk 0:01:59]}  Nxe5 {[%clk 0:01:36]} 19. Nxe5 {[%clk 0:01:57]}  Bb5 {[%clk 0:01:35]} 20. Qd2 {[%clk 0:01:39]}  Rfc8 {[%clk 0:01:35]} 21. Nd3 {[%clk 0:01:34]}  Rc2 {[%clk 0:01:33]} 22. Qf4 {[%clk 0:01:24]}  Rxe2 {[%clk 0:01:30]} 23. Nc5 {[%clk 0:01:04]}  Bxc5 {[%clk 0:01:02]} 24. bxc5 {[%clk 0:01:01]}  h6 {[%clk 0:01:03]} 25. Rac1 {[%clk 0:00:49]}  Ra2 {[%clk 0:00:53]} 26. Qb4 {[%clk 0:00:33]}  Qf6 {[%clk 0:00:48]} 27. f4 {[%clk 0:00:17]}  Qb2 {[%clk 0:00:41]} 28. Qxb2 {[%clk 0:00:16]}  Rxb2 {[%clk 0:00:41]} 29. Bxb7 {[%clk 0:00:16]}  Rc7 {[%clk 0:00:41]} 30. Bf3 {[%clk 0:00:16]}  Ra2 {[%clk 0:00:39]} 31. Rd8+ {[%clk 0:00:16]}  Kh7 {[%clk 0:00:39]} 32. Be4+ {[%clk 0:00:16]}  g6 {[%clk 0:00:38]} 33. Rdd1 {[%clk 0:00:13]}  Rxa3 {[%clk 0:00:38]} 34. Bg2 {[%clk 0:00:12]}  Ra2 {[%clk 0:00:36]} 35. c6 {[%clk 0:00:12]}  a5 {[%clk 0:00:26]} 36. Rd7 {[%clk 0:00:11]}  Rc8 {[%clk 0:00:26]} 37. Rdd1 {[%clk 0:00:08]}  Kg7 {[%clk 0:00:26]} 38. c7 {[%clk 0:00:08]}  Kf6 {[%clk 0:00:23]} 39. Rd8 {[%clk 0:00:08]}  Ba6 {[%clk 0:00:23]} 40. Rxc8 {[%clk 0:00:08]}  Bxc8 {[%clk 0:00:23]} 41. Rd1 {[%clk 0:00:04]}  Rc2 {[%clk 0:00:23]} 42. Rd8 {[%clk 0:00:04]}  Rxc7 {[%clk 0:00:23]} 43. Bf1 {[%clk 0:00:01]}  a4 {[%clk 0:00:23]} 44. Rd1 {[%clk 0:00:01]}  Ra7 {[%clk 0:00:20]} 45. Ra1 {[%clk 0:00:01]}  Bd7 {[%clk 0:00:19]} 46. Bc4 {[%clk 0:00:02]}  Kf5 {[%clk 0:00:19]} 47. Ra3 {[%clk 0:00:02]}  Ke4 {[%clk 0:00:18]} 48. Kf2 {[%clk 0:00:03]}  Kd4 {[%clk 0:00:18]} 49. Be2 {[%clk 0:00:03]}  Kc5 {[%clk 0:00:17]} 50. Bd1 {[%clk 0:00:03]}  Kb4 {[%clk 0:00:17]} 51. Ra1 {[%clk 0:00:03]}  Bb5 {[%clk 0:00:17]} 52. Ke3 {[%clk 0:00:03]}  a3 {[%clk 0:00:17]} 53. Kd4 {[%clk 0:00:03]}  Rd7+ {[%clk 0:00:17]} 54. Ke3 {[%clk 0:00:02]}  Bc4 {[%clk 0:00:16]} 55. Rb1+ {[%clk 0:00:01]}  Kc3 {[%clk 0:00:16]} 56. Rc1+ {[%clk 0:00:02]}  Kb4 {[%clk 0:00:16]} 57. Rb1+ {[%clk 0:00:02]}  Kc5 {[%clk 0:00:16]} 58. Rc1 {[%clk 0:00:02]}  Rd3+ {[%clk 0:00:16]} 59. Kf2 {[%clk 0:00:01]}  a2 {[%clk 0:00:14]} 60. Be2 {[%clk 0:00:00]}  Rd4 {[%clk 0:00:14]} 0-1